fUSD/lending_fUSD_20250322
["ID","MTS","AMOUNT","RATE_DAILY","PERIOD"]
[356564352,1742680255562,-500.0,0.00043836,120]
[356564353,1742680255572,-500.0,0.00043836,120]
[356564354,1742680255581,-236.4000012,0.00043836,120]
[356564355,1742680255591,-500.0,0.00043836,120]
[356564356,1742680255600,-500.0,0.00043836,120]
[356564357,1742680255609,-500.0,0.00043836,120]
[356564358,1742680255619,-300.0,0.00043836,120]
[356564359,1742680255629,-500.0,0.00043836,120]
[356564360,1742680255638,-500.0,0.00043836,120]
[356564361,1742680255647,-500.0,0.00043836,120]
[356564362,1742680255657,-500.0,0.00043836,120]
[356564363,1742680255667,-500.0,0.00043836,120]
[356564364,1742680255677,-500.0,0.00043836,120]
[356564365,1742680255687,-500.0,0.00043836,120]
[356564366,1742680255697,-250.0,0.00043836,120]
[356564367,1742680255707,-500.0,0.00043836,120]
[356564368,1742680255716,-218.26666946,0.00043836,120]
[356564369,1742680255725,-213.183184,0.00043836,14]
[356564370,1742680255734,-295.607201,0.00043836,14]
[356564371,1742680255744,-520.86209,0.00043836,14]
[356564372,1742680255754,-520.8621,0.00043836,14]
[356564373,1742680255763,-151.0,0.00043836,14]
[356564374,1742680255772,-151.0,0.00043836,14]
[356564375,1742680255783,-606.722214,0.00043836,14]
[356564376,1742680255792,-606.722204,0.00043836,14]
[356564377,1742680255801,-2000.0,0.00043851,120]
[356564378,1742680255810,-2700.0,0.00043876,120]
[356564379,1742680255820,-204.0,0.0004389,30]
[356564380,1742680255829,-700.0,0.000439,16]
[356564381,1742680255839,-50000.0,0.00044,44]
[356564382,1742680255848,-349.9737517,0.00044,7]
[356564383,1742680255858,-200.0,0.00044,2]
[356564384,1742680255868,-500.0,0.00044,120]
[356564385,1742680255877,-39999.99999901,0.00044,14]
[356564386,1742680255887,-151.0,0.00044,14]
[356564387,1742680255896,-200.0,0.00044008,120]
[356564388,1742680255906,-2000.0,0.00044063,120]
[356564389,1742680255916,-161.2267729,0.00044079,2]
[356564390,1742680255925,-377.1040104,0.00044079,2]
[356564391,1742680255934,-2296.1959965,0.00044079,2]
[356564392,1742680255944,-4185.5483352,0.00044079,2]
[356564393,1742680255953,-576.6983,0.00044109,120]
[356564394,1742680255962,-711.057697,0.00044109,120]
[356564395,1742680255972,-500.0,0.00044109,60]
[356564396,1742680255981,-500.0,0.00044109,120]
[356564397,1742680255990,-500.0,0.00044109,120]
[356564398,1742680256000,-500.0,0.00044109,120]
[356564399,1742680256010,-251.53533804,0.00044109,120]
[356564400,1742680256019,-500.0,0.00044109,2]
[356564401,1742680256029,-500.0,0.00044109,120]
[356564402,1742680256039,-500.0,0.00044109,120]
[356564403,1742680256048,-290.56,0.00044109,120]
[356564404,1742680256057,-500.0,0.00044109,120]
[356564405,1742680256067,-1112.04,0.00044109,120]
[356564406,1742680256076,-500.0,0.00044109,120]
[356564407,1742680256086,-500.0,0.00044109,120]
[356564408,1742680256095,-500.0,0.00044109,120]
[356564409,1742680256104,-500.0,0.00044109,120]
[356564410,1742680256114,-541.66,0.00044109,120]
[356564411,1742680256123,-500.0,0.00044109,7]
[356564412,1742680256133,-500.0,0.00044109,120]
[356564413,1742680256142,-500.0,0.00044109,120]
[356564414,1742680256151,-500.0,0.00044109,120]
[356564415,1742680256160,-500.0,0.00044109,10]
[356564416,1742680256169,-500.0,0.00044109,120]
[356564417,1742680256179,-316.11,0.00044109,120]
[356564418,1742680256187,-597.24052676,0.00044109,120]
[356564419,1742680256197,-500.0,0.00044109,120]
[356564420,1742680256207,-500.0,0.00044109,120]
[356564421,1742680256216,-500.0,0.00044109,120]
[356564422,1742680256226,-500.0,0.00044109,120]
[356564423,1742680256235,-500.0,0.00044109,120]
[356564424,1742680256245,-500.0,0.00044109,120]
[356564425,1742680256255,-571.86918687,0.00044109,120]
[356564426,1742680256265,-500.0,0.00044109,120]
[356564427,1742680256276,-275.00704834,0.00044109,120]
[356564428,1742680256289,-500.0,0.00044109,120]
[356564429,1742680256299,-500.0,0.00044109,120]
[356564430,1742680256308,-523.07,0.00044109,120]
[356564431,1742680256317,-500.0,0.00044109,7]
[356564432,1742680256327,-500.0,0.00044109,120]
[356564433,1742680256336,-500.0,0.00044109,120]
[356564434,1742680256345,-496.67675366,0.00044109,120]
[356564435,1742680256354,-500.0,0.00044109,120]
[356564436,1742680256364,-468.1229985,0.00044109,120]
[356564437,1742680256373,-2000.0,0.00044109,2]
[356564438,1742680256382,-500.0,0.00044109,120]
[356564439,1742680256391,-500.0,0.00044109,120]
[356564440,1742680256401,-500.0,0.00044109,120]
[356564441,1742680256410,-488.3450242,0.00044109,120]
[356564442,1742680256419,-500.0,0.00044109,120]
[356564443,1742680256429,-500.0,0.00044109,120]
[356564444,1742680256438,-500.0,0.00044109,120]
[356564445,1742680256448,-500.0,0.00044109,120]
[356564446,1742680256458,-500.0,0.00044109,120]
[356564447,1742680256467,-500.0,0.00044109,120]
[356564448,1742680256476,-495.90026383,0.00044109,120]
[356564449,1742680256485,-500.0,0.00044109,120]
[356564450,1742680256495,-288.56903732,0.00044109,120]
[356564451,1742680256504,-500.0,0.00044109,120]
[356564452,1742680256513,-500.0,0.00044109,120]
[356564453,1742680256524,-500.0,0.00044109,120]
[356564454,1742680256534,-500.0,0.00044109,120]
[356564455,1742680256543,-500.0,0.00044109,120]
[356564456,1742680256551,-500.0,0.00044109,120]
[356564457,1742680256561,-500.0,0.00044109,120]
[356564458,1742680256570,-500.0,0.00044109,120]
[356564459,1742680256579,-500.0,0.00044109,120]
[356564460,1742680256588,-500.0,0.00044109,120]
[356564461,1742680256597,-500.0,0.00044109,120]
[356564462,1742680256606,-500.0,0.00044109,120]
[356564463,1742680256616,-500.0,0.00044109,120]
[356564464,1742680256625,-500.0,0.00044109,120]
[356564465,1742680256635,-500.0,0.00044109,120]
[356564466,1742680256644,-500.0,0.00044109,120]
[356564467,1742680256653,-557.43824615,0.00044109,120]
[356564468,1742680256662,-500.0,0.00044109,120]
[356564469,1742680256671,-500.0,0.00044109,120]
[356564470,1742680256680,-500.0,0.00044109,120]
[356564471,1742680256689,-1995.08,0.00044109,120]
[356564472,1742680256699,-500.0,0.00044109,120]
[356564473,1742680256707,-500.0,0.00044109,120]
[356564474,1742680256717,-500.0,0.00044109,120]
[356564475,1742680256726,-500.0,0.00044109,120]
[356564476,1742680256735,-570.64289778,0.00044109,120]
[356564477,1742680256744,-500.0,0.00044109,120]
[356564478,1742680256754,-500.0,0.00044109,120]
[356564479,1742680256763,-500.0,0.00044109,120]
[356564480,1742680256883,-500.0,0.00044109,120]
[356564481,1742680256893,-500.0,0.00044109,120]
[356564482,1742680256903,-500.0,0.00044109,120]
[356564483,1742680256913,-500.0,0.00044109,120]
[356564484,1742680256923,-500.0,0.00044109,120]
[356564485,1742680256934,-585.0,0.00044109,120]
[356564486,1742680256944,-500.0,0.00044109,120]
[356564487,1742680256953,-500.0,0.00044109,120]
[356564488,1742680256962,-506.53,0.00044109,120]
[356564489,1742680256972,-715.73,0.00044109,120]
[356564490,1742680256982,-500.0,0.00044109,120]
[356564491,1742680256993,-500.0,0.00044109,120]
[356564492,1742680257002,-500.0,0.00044109,120]
[356564493,1742680257012,-290.32335291,0.00044109,120]
[356564494,1742680257021,-500.0,0.00044109,120]
[356564495,1742680257031,-500.0,0.00044109,120]
[356564496,1742680257040,-1700.91,0.00044109,120]
[356564497,1742680257049,-749.15,0.00044109,120]
[356564498,1742680257059,-500.0,0.00044109,120]
[356564499,1742680257069,-500.0,0.00044109,120]
[356564500,1742680257078,-500.0,0.00044109,120]
[356564501,1742680257088,-369.93103221,0.00044109,120]
[356564502,1742680257098,-14463.29,0.00044109,120]
[356564503,1742680257108,-900.87,0.00044109,2]
[356564504,1742680257118,-191.76744929,0.00044109,7]
[356564505,1742680257128,-170.93046682,0.00044109,120]
[356564506,1742680257139,-500.0,0.00044109,120]
[356564507,1742680257148,-500.0,0.00044109,120]
[356564508,1742680257157,-620.13144458,0.00044109,120]
[356564509,1742680257167,-500.0,0.00044109,120]
[356564510,1742680257176,-500.0,0.00044109,120]
[356564511,1742680257186,-500.0,0.00044109,120]
[356564512,1742680257197,-500.0,0.00044109,120]
[356564513,1742680257209,-500.0,0.00044109,7]
[356564514,1742680257219,-1076.21,0.00044109,120]
[356564515,1742680257229,-500.0,0.00044109,120]
[356564516,1742680257239,-248.80132076,0.00044109,120]
[356564517,1742680257251,-722.27,0.00044109,120]
[356564518,1742680257262,-945.13,0.00044109,120]
[356564519,1742680257272,-450.593244,0.00044109,120]
[356564520,1742680257286,-500.0,0.00044109,100]
[356564521,1742680257297,-500.0,0.00044109,120]
[356564522,1742680257308,-500.0,0.00044109,120]
[356564523,1742680257317,-834.39,0.00044109,120]
[356564524,1742680257327,-500.0,0.00044109,120]
[356564525,1742680257337,-500.0,0.00044109,120]
[356564526,1742680257347,-590.10733624,0.00044109,120]
[356564527,1742680257359,-500.0,0.00044109,120]
[356564528,1742680257370,-500.0,0.00044109,120]
[356564529,1742680257380,-500.0,0.00044109,120]
[356564530,1742680257389,-199.96668165,0.00044109,120]
[356564531,1742680257399,-696.25,0.00044109,120]
[356564532,1742680257408,-500.0,0.00044109,120]
[356564533,1742680257417,-500.0,0.00044109,120]
[356564534,1742680257427,-500.0,0.00044109,120]
[356564535,1742680257436,-197.35331388,0.00044109,120]
[356564536,1742680257445,-500.0,0.00044109,120]
[356564537,1742680257454,-445.98057511,0.00044109,120]
[356564538,1742680257464,-272.48,0.00044109,120]
[356564539,1742680257473,-500.0,0.00044109,120]
[356564540,1742680257482,-500.0,0.00044109,120]
[356564541,1742680257492,-500.0,0.00044109,120]
[356564542,1742680257502,-500.0,0.00044109,120]
[356564543,1742680257511,-686.72,0.00044109,120]
[356564544,1742680257521,-500.0,0.00044109,120]
[356564545,1742680257530,-427.28319946,0.00044109,120]
[356564546,1742680257540,-500.0,0.00044109,120]
[356564547,1742680257549,-500.0,0.00044109,120]
[356564548,1742680257559,-500.0,0.00044109,120]
[356564549,1742680257568,-500.0,0.00044109,120]
[356564550,1742680257577,-500.0,0.00044109,120]
[356564551,1742680257587,-283.87984006,0.00044109,120]
[356564552,1742680257596,-500.0,0.00044109,120]
[356564553,1742680257606,-484.00566095,0.00044109,120]
[356564554,1742680257614,-500.0,0.00044109,120]
[356564555,1742680257623,-500.0,0.00044109,120]
[356564556,1742680257632,-500.0,0.00044109,120]
[356564557,1742680257642,-500.0,0.00044109,120]
[356564558,1742680257651,-500.0,0.00044109,120]
[356564559,1742680257659,-500.0,0.00044109,120]
[356564560,1742680257668,-500.0,0.00044109,120]
[356564561,1742680257678,-500.0,0.00044109,120]
[356564562,1742680257687,-500.0,0.00044109,120]
[356564563,1742680257696,-500.0,0.00044109,120]
[356564564,1742680257705,-909.88,0.00044109,120]
[356564565,1742680257714,-503.41,0.00044109,120]
[356564566,1742680257723,-1424.5,0.00044109,120]
[356564567,1742680257732,-500.0,0.00044109,120]
[356564568,1742680257741,-500.0,0.00044109,120]
[356564569,1742680257751,-374.3912126,0.00044109,120]
[356564570,1742680257760,-500.0,0.00044109,120]
[356564571,1742680257769,-500.0,0.00044109,120]
[356564572,1742680257779,-500.0,0.00044109,120]
[356564573,1742680257788,-500.0,0.00044109,120]
[356564574,1742680257798,-500.0,0.00044109,120]
[356564575,1742680257807,-500.0,0.00044109,120]
[356564576,1742680257818,-500.0,0.00044109,120]
[356564577,1742680257828,-500.0,0.00044109,120]
[356564578,1742680257837,-500.0,0.00044109,120]
[356564579,1742680257846,-500.0,0.00044109,120]
[356564580,1742680257856,-500.0,0.00044109,120]
[356564581,1742680257865,-500.0,0.00044109,120]
[356564582,1742680257875,-500.0,0.00044109,120]
[356564583,1742680257884,-500.0,0.00044109,120]
[356564584,1742680257894,-500.0,0.00044109,120]
[356564585,1742680257904,-500.0,0.00044109,120]
[356564586,1742680257915,-670.46,0.00044109,120]
[356564587,1742680257924,-500.0,0.00044109,120]
[356564588,1742680257935,-500.0,0.00044109,120]
[356564589,1742680257946,-500.0,0.00044109,120]
[356564590,1742680257956,-500.0,0.00044109,120]
[356564591,1742680257965,-500.0,0.00044109,120]
[356564592,1742680257974,-383.58283817,0.00044109,120]
[356564593,1742680257984,-500.0,0.00044109,120]
[356564594,1742680257992,-500.0,0.00044109,120]
[356564595,1742680258002,-500.0,0.00044109,120]
[356564596,1742680258012,-500.0,0.00044109,120]
[356564597,1742680258021,-602.75,0.00044109,120]
[356564598,1742680258031,-500.0,0.00044109,120]
[356564599,1742680258042,-151.0,0.00044109,14]
[356564600,1742680258051,-500.0,0.00044109,120]
[356564601,1742680258064,-500.0,0.00044109,120]
[356564602,1742680258074,-500.0,0.00044109,120]
[356564603,1742680258084,-500.0,0.00044109,120]
[356564604,1742680258096,-522.23789118,0.00044109,120]
[356564605,1742680258106,-520.78565338,0.00044109,120]
[356564606,1742680258117,-500.0,0.00044109,120]
[356564607,1742680258126,-500.0,0.00044109,120]
[356564608,1742680258135,-500.0,0.00044109,120]
[356564609,1742680258145,-500.0,0.00044109,120]
[356564610,1742680258156,-500.0,0.00044109,120]
[356564611,1742680258165,-338.36752405,0.00044109,120]
[356564612,1742680258175,-500.0,0.00044109,120]
[356564613,1742680258184,-500.0,0.00044109,120]
[356564614,1742680258194,-528.26,0.00044109,120]
[356564615,1742680258206,-500.0,0.00044109,120]
[356564616,1742680258217,-414.36588384,0.00044109,120]
[356564617,1742680258226,-939.41,0.00044109,120]
[356564618,1742680258236,-500.0,0.00044109,120]
[356564619,1742680258248,-500.0,0.00044109,120]
[356564620,1742680258257,-611.61933032,0.00044109,120]
[356564621,1742680258266,-500.0,0.00044109,120]
[356564622,1742680258276,-500.0,0.00044109,120]
[356564623,1742680258288,-164.02158922,0.00044109,120]
[356564624,1742680258298,-500.0,0.00044109,120]
[356564625,1742680258308,-2700.0,0.0004415,120]
[356564626,1742680258317,-198.28,0.00044239,2]
[356564627,1742680258327,-2000.0,0.00044248,3]
[356564628,1742680258336,-922.1007,0.00044268,3]
[356564629,1742680258345,-2000.0,0.00044268,3]
[356564630,1742680258355,-2000.0,0.00044274,120]
[356564631,1742680258364,-32370.37445334,0.0004432,2]
[356564632,1742680258373,-151.0,0.0004432,14]
[356564633,1742680258382,-113599.0,0.00044342,10]
[356564634,1742680258391,-415.5762026,0.00044353,2]
[356564635,1742680258401,-2530.454162,0.00044353,2]
[356564636,1742680258410,-4627.7656755,0.00044353,2]
[356564637,1742680258419,-576.6983,0.00044383,120]
[356564638,1742680258429,-711.057697,0.00044383,120]
[356564639,1742680258438,-500.0,0.00044383,60]
[356564640,1742680258448,-500.0,0.00044383,120]
[356564641,1742680258458,-500.0,0.00044383,120]
[356564642,1742680258467,-494.8075409,0.00044383,120]
[356564643,1742680258476,-500.0,0.00044383,2]
[356564644,1742680258486,-500.0,0.00044383,120]
[356564645,1742680258495,-500.0,0.00044383,120]
[356564646,1742680258504,-500.0,0.00044383,120]
[356564647,1742680258514,-1112.04,0.00044383,120]
[356564648,1742680258523,-500.0,0.00044383,120]
[356564649,1742680258534,-593.30529489,0.00044383,120]
[356564650,1742680258543,-500.0,0.00044383,120]
[356564651,1742680258552,-519.24309993,0.00044383,120]
[356564652,1742680258562,-541.66,0.00044383,120]
[356564653,1742680258573,-500.0,0.00044383,7]
[356564654,1742680258582,-515.51040093,0.00044383,120]
[356564655,1742680258592,-500.0,0.00044383,120]
[356564656,1742680258601,-500.0,0.00044383,120]
[356564657,1742680258611,-500.0,0.00044383,10]
[356564658,1742680258620,-500.0,0.00044383,120]
[356564659,1742680258631,-500.0,0.00044383,120]
[356564660,1742680258641,-500.0,0.00044383,120]
[356564661,1742680258650,-500.0,0.00044383,120]
[356564662,1742680258659,-500.0,0.00044383,120]
[356564663,1742680258669,-500.0,0.00044383,120]
[356564664,1742680258678,-500.0,0.00044383,120]
[356564665,1742680258688,-500.0,0.00044383,120]
[356564666,1742680258697,-500.0,0.00044383,120]
[356564667,1742680258707,-500.0,0.00044383,120]
[356564668,1742680258717,-523.07,0.00044383,120]
[356564669,1742680258728,-500.0,0.00044383,7]
[356564670,1742680258738,-500.0,0.00044383,120]
[356564671,1742680258747,-500.0,0.00044383,120]
[356564672,1742680258756,-500.0,0.00044383,120]
[356564673,1742680258766,-2000.0,0.00044383,2]
[356564674,1742680258776,-500.0,0.00044383,120]
[356564675,1742680258785,-500.0,0.00044383,120]
[356564676,1742680258795,-500.0,0.00044383,120]
[356564677,1742680258804,-500.0,0.00044383,120]
[356564678,1742680258814,-500.0,0.00044383,120]
[356564679,1742680258823,-500.0,0.00044383,120]
[356564680,1742680258833,-500.0,0.00044383,120]
[356564681,1742680258843,-500.0,0.00044383,120]
[356564682,1742680258853,-500.0,0.00044383,120]
[356564683,1742680258863,-638.75162475,0.00044383,120]
[356564684,1742680258873,-500.0,0.00044383,120]
[356564685,1742680258883,-500.0,0.00044383,120]
[356564686,1742680258893,-500.0,0.00044383,120]
[356564687,1742680258902,-500.0,0.00044383,120]
[356564688,1742680258912,-500.0,0.00044383,120]
[356564689,1742680258921,-500.0,0.00044383,120]
[356564690,1742680258931,-500.0,0.00044383,120]
[356564691,1742680258941,-500.0,0.00044383,120]
[356564692,1742680258951,-500.0,0.00044383,120]
[356564693,1742680258960,-500.0,0.00044383,120]
[356564694,1742680258969,-500.0,0.00044383,120]
[356564695,1742680258979,-345.78673099,0.00044383,120]
[356564696,1742680258988,-500.0,0.00044383,120]
[356564697,1742680258998,-500.0,0.00044383,120]
[356564698,1742680259007,-500.0,0.00044383,120]
[356564699,1742680259017,-500.0,0.00044383,120]
[356564700,1742680259026,-500.0,0.00044383,120]
[356564701,1742680259038,-500.0,0.00044383,120]
[356564702,1742680259048,-500.0,0.00044383,120]
[356564703,1742680259058,-1995.08,0.00044383,120]
[356564704,1742680259067,-500.0,0.00044383,120]
[356564705,1742680259077,-500.0,0.00044383,120]
[356564706,1742680259087,-500.0,0.00044383,120]
[356564707,1742680259096,-500.0,0.00044383,120]
[356564708,1742680259106,-500.0,0.00044383,120]
[356564709,1742680259115,-500.0,0.00044383,120]
[356564710,1742680259125,-500.0,0.00044383,120]
[356564711,1742680259135,-500.0,0.00044383,120]
[356564712,1742680259144,-500.0,0.00044383,120]
[356564713,1742680259153,-500.0,0.00044383,120]
[356564714,1742680259163,-500.0,0.00044383,120]
[356564715,1742680259172,-500.0,0.00044383,120]
[356564716,1742680259184,-585.0,0.00044383,120]
[356564717,1742680259193,-500.0,0.00044383,120]
[356564718,1742680259203,-500.0,0.00044383,120]
[356564719,1742680259212,-506.53,0.00044383,120]
[356564720,1742680259222,-715.73,0.00044383,120]
[356564721,1742680259231,-500.0,0.00044383,120]
[356564722,1742680259241,-500.0,0.00044383,120]
[356564723,1742680259250,-500.0,0.00044383,120]
[356564724,1742680259260,-500.0,0.00044383,120]
[356564725,1742680259269,-500.0,0.00044383,120]
[356564726,1742680259279,-1700.91,0.00044383,120]
[356564727,1742680259292,-749.15,0.00044383,120]
[356564728,1742680259301,-500.0,0.00044383,120]
[356564729,1742680259311,-500.0,0.00044383,120]
[356564730,1742680259320,-500.0,0.00044383,120]
[356564731,1742680259331,-14463.29,0.00044383,120]
[356564732,1742680259340,-900.87,0.00044383,2]
[356564733,1742680259350,-500.0,0.00044383,120]
[356564734,1742680259361,-500.0,0.00044383,120]
[356564735,1742680259371,-500.0,0.00044383,120]
[356564736,1742680259380,-500.0,0.00044383,120]
[356564737,1742680259390,-500.0,0.00044383,120]
[356564738,1742680259399,-500.0,0.00044383,7]
[356564739,1742680259527,-1076.21,0.00044383,120]
[356564740,1742680259537,-500.0,0.00044383,120]
[356564741,1742680259546,-722.27,0.00044383,120]
[356564742,1742680259556,-945.13,0.00044383,120]
[356564743,1742680259565,-500.0,0.00044383,100]
[356564744,1742680259574,-500.0,0.00044383,120]
[356564745,1742680259583,-500.0,0.00044383,120]
[356564746,1742680259592,-834.39,0.00044383,120]
[356564747,1742680259601,-500.0,0.00044383,120]
[356564748,1742680259610,-500.0,0.00044383,120]
[356564749,1742680259619,-500.0,0.00044383,120]
[356564750,1742680259629,-500.0,0.00044383,120]
[356564751,1742680259639,-500.0,0.00044383,120]
[356564752,1742680259648,-696.25,0.00044383,120]
[356564753,1742680259657,-500.0,0.00044383,120]
[356564754,1742680259667,-500.0,0.00044383,120]
[356564755,1742680259677,-500.0,0.00044383,120]
[356564756,1742680259687,-500.0,0.00044383,120]
[356564757,1742680259697,-500.0,0.00044383,120]
[356564758,1742680259706,-500.0,0.00044383,120]
[356564759,1742680259715,-500.0,0.00044383,120]
[356564760,1742680259724,-500.0,0.00044383,120]
[356564761,1742680259733,-686.72,0.00044383,120]
[356564762,1742680259742,-500.0,0.00044383,120]
[356564763,1742680259751,-500.0,0.00044383,120]
[356564764,1742680259761,-500.0,0.00044383,120]
[356564765,1742680259770,-500.0,0.00044383,120]
[356564766,1742680259779,-500.0,0.00044383,120]
[356564767,1742680259788,-500.0,0.00044383,120]
[356564768,1742680259798,-500.0,0.00044383,120]
[356564769,1742680259807,-500.0,0.00044383,120]
[356564770,1742680259815,-425.39768245,0.00044383,120]
[356564771,1742680259825,-500.0,0.00044383,120]
[356564772,1742680259834,-500.0,0.00044383,120]
[356564773,1742680259843,-500.0,0.00044383,120]
[356564774,1742680259852,-500.0,0.00044383,120]
[356564775,1742680259861,-500.0,0.00044383,120]
[356564776,1742680259871,-500.0,0.00044383,120]
[356564777,1742680259882,-500.0,0.00044383,120]
[356564778,1742680259893,-500.0,0.00044383,120]
[356564779,1742680259903,-909.88,0.00044383,120]
[356564780,1742680259913,-503.41,0.00044383,120]
[356564781,1742680259924,-1424.5,0.00044383,120]
[356564782,1742680259933,-558.2057508,0.00044383,120]
[356564783,1742680259944,-296.77600555,0.00044383,120]
[356564784,1742680259955,-500.0,0.00044383,120]
[356564785,1742680259964,-500.0,0.00044383,120]
[356564786,1742680259977,-500.0,0.00044383,120]
[356564787,1742680259987,-500.0,0.00044383,120]
[356564788,1742680259997,-500.0,0.00044383,120]
[356564789,1742680260007,-500.0,0.00044383,120]
[356564790,1742680260016,-346.74680683,0.00044383,120]
[356564791,1742680260026,-500.0,0.00044383,120]
[356564792,1742680260036,-500.0,0.00044383,120]
[356564793,1742680260046,-500.0,0.00044383,120]
[356564794,1742680260055,-500.0,0.00044383,120]
[356564795,1742680260065,-500.0,0.00044383,120]
[356564796,1742680260074,-500.0,0.00044383,120]
[356564797,1742680260084,-500.0,0.00044383,120]
[356564798,1742680260093,-500.0,0.00044383,120]
[356564799,1742680260102,-500.0,0.00044383,120]
[356564800,1742680260111,-670.46,0.00044383,120]
[356564801,1742680260120,-501.86618884,0.00044383,120]
[356564802,1742680260129,-500.0,0.00044383,120]
[356564803,1742680260138,-500.0,0.00044383,120]
[356564804,1742680260148,-500.0,0.00044383,120]
[356564805,1742680260157,-500.0,0.00044383,120]
[356564806,1742680260166,-500.0,0.00044383,120]
[356564807,1742680260175,-500.0,0.00044383,120]
[356564808,1742680260185,-500.0,0.00044383,120]
[356564809,1742680260195,-500.0,0.00044383,120]
[356564810,1742680260204,-602.75,0.00044383,120]
[356564811,1742680260214,-500.0,0.00044383,120]
[356564812,1742680260223,-500.0,0.00044383,120]
[356564813,1742680260232,-500.0,0.00044383,120]
[356564814,1742680260242,-500.0,0.00044383,120]
[356564815,1742680260251,-500.0,0.00044383,120]
[356564816,1742680260260,-553.44692082,0.00044383,120]
[356564817,1742680260269,-592.31874337,0.00044383,120]
[356564818,1742680260278,-500.0,0.00044383,120]
[356564819,1742680260289,-500.0,0.00044383,120]
[356564820,1742680260298,-151.06,0.00044383,120]
[356564821,1742680260307,-500.0,0.00044383,120]
[356564822,1742680260316,-500.0,0.00044383,120]
[356564823,1742680260326,-528.26,0.00044383,120]
[356564824,1742680260335,-500.0,0.00044383,120]
[356564825,1742680260344,-939.41,0.00044383,120]
[356564826,1742680260353,-500.0,0.00044383,120]
[356564827,1742680260363,-500.0,0.00044383,120]
[356564828,1742680260372,-500.0,0.00044383,120]
[356564829,1742680260382,-500.0,0.00044383,120]
[356564830,1742680260391,-500.0,0.00044383,120]
[356564831,1742680260402,-160.06007486,0.000444,120]
[356564832,1742680260411,-380.81271,0.000444,59]
[356564833,1742680260421,-2700.0,0.00044424,120]
[356564834,1742680260430,-500.0,0.0004445,120]
[356564835,1742680260439,-161.2267729,0.0004446,2]
[356564836,1742680260448,-2000.0,0.00044485,120]
[356564837,1742680260457,-900.0,0.0004449,16]
[356564838,1742680260467,-900.0,0.0004449,16]
[356564839,1742680260477,-900.0,0.0004449,16]
[356564840,1742680260488,-900.0,0.0004449,16]
[356564841,1742680260497,-900.0,0.0004449,16]
[356564842,1742680260506,-900.0,0.0004449,16]
[356564843,1742680260516,-900.0,0.0004449,16]
[356564844,1742680260525,-900.0,0.0004449,16]
[356564845,1742680260534,-900.0,0.0004449,16]
[356564846,1742680260543,-900.0,0.0004449,16]
[356564847,1742680260553,-900.0,0.0004449,16]
[356564848,1742680260562,-900.0,0.0004449,16]
[356564849,1742680260571,-172.84947382,0.0004449,16]
[356564850,1742680260580,-1500.0,0.00044493,120]
[356564851,1742680260589,-1641.59,0.00044495,120]